bitfinex-derivatives/quotes_SOLF0:USTF0_20251208
["timestamp","ask_amount","ask_price","bid_price","bid_amount"]
[1765213807958,5.50340766,136.08,136.05,0.05087467]
[1765213807959,5.50340766,136.08,136.06,6.6144]
[1765213808260,3.14234226,136.1,136.06,6.6144]
[1765213808554,5.50670994,136.09,136.07,6.6142]
[1765213809352,0.05234226,136.1,136.07,6.6142]
[1765213809565,0.05234226,136.1,136.08,6.6137]
[1765213810952,0.05234226,136.1,136.08,11.33689864]
[1765213811152,0.05234226,136.1,136.08,6.6137]
[1765213812652,0.05234226,136.1,136.08,11.33689864]
[1765213815353,0.05234226,136.1,136.09,62.5]
[1765213815568,9.7,136.16,136.09,104.3311]
[1765213815569,5.52199021,136.14,136.09,104.3311]
[1765213815771,5.52423663,136.15,136.11,4.72319864]
[1765213816064,75.95822244,136.18,136.11,4.72319864]
[1765213816265,8.61282503,136.17,136.1,170.08659864]
[1765213816468,0.04869921,136.15,136.12,0.05258334]
[1765213816669,5.52282503,136.14,136.12,0.05258334]
[1765213816862,0.04869921,136.15,136.12,0.05258334]
[1765213817062,5.52519777,136.14,136.12,0.05258334]
[1765213817265,0.04869921,136.15,136.13,6.6112]
[1765213818065,0.04869921,136.15,136.14,4.72319864]
[1765213818269,0.04869921,136.15,136.14,67.20319864]
[1765213818466,0.04869921,136.15,136.14,62.48]
[1765213818667,8.76552471,136.15,136.12,0.05258334]
[1765213818968,3.23869921,136.15,136.12,0.05258334]
[1765213819364,5.53002156,136.14,136.12,6.66438334]
[1765213819559,3.23869921,136.15,136.12,6.66438334]
[1765213819759,5.53002093,136.14,136.12,6.66438334]
[1765213819967,9.84929921,136.15,136.12,0.05258334]
[1765213820270,3.19,136.13,136.12,0.05258334]
[1765213820460,8.72041829,136.13,136.12,0.05258334]
[1765213821672,5.53041829,136.13,136.12,0.05258334]
[1765213822967,3.23869921,136.15,136.12,6.66438334]
[1765213823174,5.53680938,136.14,136.12,6.66438334]
[1765213823367,5.53818652,136.13,136.12,6.66438334]
[1765213823568,3.23869921,136.15,136.12,6.66438334]
[1765213823775,5.5379337,136.14,136.12,6.66438334]
[1765213824076,0.04869921,136.15,136.13,6.6111]
[1765213824266,5.53703994,136.14,136.12,0.05258334]
[1765213824470,3.23869921,136.15,136.12,0.05258334]
[1765213824975,5.53856929,136.14,136.13,4.72319864]
[1765213825870,3.23869921,136.15,136.13,4.72319864]
[1765213826266,5.53894067,136.14,136.13,4.72319864]
[1765213828881,8.72894067,136.14,136.13,4.72319864]
[1765213829378,3.19,136.13,136.12,0.05258334]
[1765213829580,8.72894067,136.13,136.12,0.05258334]
[1765213831171,8.72894067,136.13,136.12,0.00258334]
[1765213832778,5.53894067,136.13,136.12,0.00258334]
[1765213835479,8.72894067,136.13,136.12,0.00258334]
[1765213836278,3.19,136.12,136.09,4.72319864]
[1765213836581,8.74967521,136.11,136.09,4.72319864]
[1765213836778,3.19,136.11,136.09,4.72319864]
[1765213837283,3.24632189,136.11,136.09,4.7699437]
[1765213837672,0.05632189,136.11,136.09,4.7699437]
[1765213838278,0.05632189,136.11,136.09,11.3829437]
[1765213839373,3.24632189,136.11,136.09,0.04674506]
[1765213839974,8.75163687,136.1,136.09,0.04674506]
[1765213842592,5.56163687,136.1,136.09,0.04674506]
[1765213843693,8.75163687,136.1,136.09,0.04674506]
[1765213847599,3.19,136.09,136.05,67.20319864]
[1765213847786,3.19,136.07,136.05,67.20319864]
[1765213848495,3.2,136.1,136.05,73.81829864]
[1765213848790,8.80868163,136.09,136.06,0.05514497]
[1765213849094,5.56181023,136.08,136.06,0.05514497]
[1765213849296,8.76251952,136.07,136.06,0.05514497]
[1765213854097,3.2,136.06,136.02,6.6163]
[1765213854294,3.2,136.04,136.02,6.6163]
[1765213855199,0.05573262,136.04,136.02,6.6685333]
[1765213855402,3.25573262,136.04,136.02,6.6685333]
[1765213856104,3.25573262,136.04,136.02,0.0522333]
[1765213858501,0.05573262,136.04,136.02,0.0522333]
[1765213858701,0.05573262,136.04,136.03,3.02435584]
[1765213863107,0.05573262,136.04,136.02,6.6688333]
[1765213863411,0.05573262,136.04,136.03,3.02435584]
[1765213863712,9.98892244,136.1,136.03,3.02435584]
[1765213864006,3.14,136.12,136.09,3.02435584]
[1765213864207,3.14,136.12,136.11,3.02435584]
[1765213864402,8.69154548,136.12,136.11,3.02435584]
[1765213866700,3.14,136.11,136.1,0.05088158]
[1765213867006,3.14,136.1,136.08,3.02435584]
[1765213868014,3.14,136.1,136.08,3.07209116]
[1765213868311,3.14,136.1,136.08,0.04773532]
[1765213868512,3.14,136.1,136.08,3.07209116]
[1765213868712,3.14,136.1,136.08,9.68579116]
[1765213869409,3.14,136.1,136.08,6.66143532]
[1765213869605,3.14,136.1,136.09,3.02435584]
[1765213869811,8.69462477,136.1,136.09,3.02435584]
[1765213870011,5.55462477,136.1,136.09,3.02435584]
[1765213870402,8.69462477,136.1,136.09,3.02435584]
[1765213871700,3.14,136.09,136.08,0.04773532]
[1765213871896,8.69462477,136.09,136.08,0.04773532]
[1765213872107,3.14,136.08,136.07,3.02435584]
[1765213872309,8.69462477,136.08,136.07,3.02435584]
[1765213872511,8.69462477,136.08,136.04,62.5]
[1765213872512,3.14,136.07,136.04,62.5]
[1765213872705,3.14,136.07,136.05,3.02435584]
[1765213872907,9.98892244,136.11,136.07,6.6141]
[1765213873209,5.60668576,136.1,136.09,3.02435584]
[1765213873409,5.55327444,136.1,136.09,3.02435584]
[1765213874508,5.55327444,136.1,136.09,9.63765584]
[1765213875302,5.55327444,136.1,136.09,3.02435584]
[1765213877115,8.69327444,136.1,136.09,3.02435584]
[1765213878108,3.17,136.09,136.08,0.04875659]
[1765213878314,8.72327444,136.09,136.08,0.04875659]
[1765213879117,5.55327444,136.09,136.08,0.04875659]
[1765213879510,8.72327444,136.09,136.08,0.04875659]
[1765213879819,5.55327444,136.09,136.08,0.04875659]
[1765213880517,0.05649642,136.11,136.09,6.6134]
[1765213880717,0.05649642,136.11,136.1,3.02435584]
[1765213882716,3.22649642,136.11,136.1,3.02435584]
[1765213883421,3.22649642,136.11,136.08,3.07311243]
[1765213886024,3.22649642,136.11,136.08,9.68681243]
[1765213886218,0.05649642,136.11,136.1,3.02435584]
[1765213886621,3.22649642,136.11,136.1,3.02435584]
[1765213886917,3.22649642,136.11,136.09,3.02435584]
[1765213887127,3.22649642,136.11,136.08,3.07311243]
[1765213887520,3.17,136.1,136.08,3.07311243]
[1765213888113,3.17,136.09,136.08,3.07311243]
[1765213888518,3.17,136.09,136.08,0.04875659]
[1765213889322,3.17,136.09,136.08,3.07311243]
[1765213889529,13.52766355,136.11,136.08,3.07311243]
[1765213889530,0.05649642,136.11,136.08,3.07311243]
[1765213889725,0.05649642,136.11,136.1,3.02435584]
[1765213891231,3.22649642,136.11,136.1,3.02435584]
[1765213892226,3.22649642,136.11,136.08,9.68691243]
[1765213892633,8.70706833,136.1,136.08,9.68691243]
[1765213892833,5.53706833,136.09,136.08,9.68691243]
[1765213895442,0.05649642,136.11,136.09,6.6133]
[1765213895746,5.53676591,136.1,136.09,6.6133]
[1765213895943,3.17,136.09,136.08,0.04875659]
[1765213896145,8.70676591,136.09,136.08,0.04875659]
[1765213902251,15.56553304,136.09,136.08,0.04875659]
[1765213902641,3.17,136.08,136.05,3.02435584]
[1765213902843,3.17,136.06,136.05,3.02435584]
[1765213903043,8.70676591,136.06,136.05,3.02435584]
[1765213903238,8.70676591,136.06,136.04,6.6154]
[1765213903444,5.53676591,136.05,136.04,6.6154]
[1765213905758,3.17,136.08,136.05,6.6148]
[1765213905955,5.55935619,136.07,136.06,3.02435584]
[1765213907648,8.72935619,136.07,136.06,3.02435584]
[1765213908153,5.55935619,136.07,136.06,3.02435584]
[1765213909152,3.28,136.06,136.05,6.6148]
[1765213909450,8.83935619,136.06,136.05,6.6148]
[1765213910443,8.83935619,136.06,136.05,3.02435584]
[1765213910848,3.28,136.05,136.03,3.02435584]
[1765213911056,5.55935619,136.04,136.03,3.02435584]
[1765213912251,3.28,136.07,136.04,6.6156]
[1765213912451,3.28,136.07,136.06,3.02435584]
[1765213912647,8.83734944,136.07,136.06,3.02435584]
[1765213913752,3.28,136.06,136.04,3.02435584]
[1765213913950,8.83734944,136.05,136.04,3.02435584]
[1765213915260,5.55734944,136.05,136.04,3.02435584]
[1765213918253,5.55734944,136.05,136.03,6.6162]
[1765213918552,3.28,136.07,136.04,3.02435584]
[1765213918750,8.83330182,136.06,136.04,9.64005584]
[1765213918957,5.55330182,136.05,136.04,9.64005584]
[1765213920864,5.55330182,136.05,136.04,6.6157]
[1765213921756,3.09,136.08,136.03,107.64136616]
[1765213921956,5.55675838,136.07,136.05,4.72506616]
[1765213922155,9.94876713,136.1,136.05,4.72506616]
[1765213922156,3.09,136.09,136.05,4.72506616]
[1765213922358,5.5568655,136.08,136.05,4.72506616]
[1765213922660,5.55695074,136.07,136.06,6.6147]
[1765213923856,9.12147107,136.12,136.06,6.6147]
[1765213923857,9.94876713,136.12,136.07,102.8894]
[1765213924158,6.6108,136.15,136.09,4.72506616]
[1765213924159,6.85876713,136.13,136.09,4.72506616]
[1765213924352,3.09,136.13,136.09,4.72506616]
[1765213924553,3.09,136.13,136.1,6.6128]
[1765213925764,3.09,136.13,136.11,6.6123]
[1765213925964,3.09,136.13,136.09,4.72506616]
[1765213927464,3.09,136.13,136.1,6.6128]
[1765213928559,9.94876713,136.15,136.11,4.72506616]
[1765213928766,3.09,136.15,136.11,4.72506616]
[1765213929559,3.09,136.15,136.12,6.6116]
[1765213929755,3.09,136.15,136.1,62.5]
[1765213929962,3.09,136.15,136.1,67.22506616]
[1765213930968,3.09,136.15,136.1,73.83766616]
[1765213931272,3.09,136.15,136.1,69.1126]
[1765213931568,3.09,136.15,136.11,11.33716616]
[1765213931773,3.09,136.15,136.11,4.72506616]
[1765213933074,3.09,136.15,136.13,6.6113]
[1765213933266,3.09,136.17,136.13,6.6113]
[1765213933573,3.09,136.17,136.11,4.72506616]
[1765213934281,3.09,136.17,136.12,6.6117]
[1765213935381,3.09,136.17,136.13,11.33636616]
[1765213935578,3.09,136.17,136.11,4.72506616]
[1765213935875,3.09,136.15,136.11,4.72506616]
[1765213936075,9.6991,136.18,136.12,6.6118]
[1765213936273,3.09,136.16,136.12,6.6118]
[1765213937376,6.6091,136.18,136.12,6.6118]
[1765213937575,3.09,136.2,136.15,4.72506616]
[1765213937774,3.09,136.2,136.17,4.72506616]
[1765213937775,5.50693193,136.19,136.17,4.72506616]
[1765213938074,3.09,136.2,136.17,4.72506616]
[1765213938280,5.50594177,136.19,136.17,11.33436616]
[1765213938580,5.50594177,136.19,136.17,4.72506616]
[1765213939375,5.50041066,136.22,136.17,4.72506616]
[1765213939580,3.19,136.22,136.19,4.72506616]
[1765213940080,3.19,136.22,136.17,11.33426616]
[1765213940871,3.19,136.22,136.18,6.6089]
[1765213942172,3.19,136.22,136.19,4.72506616]
[1765213944288,3.19,136.23,136.19,4.72506616]
[1765213944581,8.68458724,136.26,136.19,62.46]
[1765213944886,3.19,136.26,136.21,4.72506616]
[1765213947981,9.7952,136.26,136.21,4.72506616]
[1765213948184,3.19,136.25,136.21,4.72506616]
[1765213949791,3.19,136.24,136.21,4.72506616]
[1765213949983,3.19,136.24,136.19,67.16506616]
[1765213950184,3.19,136.24,136.19,4.72506616]
[1765213950486,3.19,136.24,136.18,4.72506616]
[1765213950788,3.19,136.21,136.18,4.72506616]
[1765213950984,3.19,136.25,136.18,4.72506616]
[1765213952581,3.19,136.22,136.18,4.72506616]
[1765213953185,9.7972,136.22,136.18,4.72506616]
[1765213953380,3.19,136.21,136.18,4.72506616]
[1765213953980,3.19,136.2,136.16,73.77466616]
[1765213954381,3.19,136.2,136.16,67.16506616]
[1765213954578,3.19,136.18,136.09,102.8713]
[1765213954782,3.19,136.18,136.13,4.72506616]
[1765213956494,3.19,136.17,136.13,4.72506616]
[1765213958297,3.19,136.17,136.14,6.6108]
[1765213959391,3.24272174,136.17,136.14,6.65984082]
[1765213959782,3.24272174,136.17,136.14,0.04904082]
[1765213960997,3.19,136.15,136.14,0.04904082]
[1765213964997,8.67595282,136.16,136.14,0.04904082]
[1765213965193,8.67557044,136.16,136.14,0.04904082]
[1765213965504,3.19,136.16,136.14,0.04904082]
[1765213968307,8.64261903,136.15,136.14,0.04904082]
[1765213973506,3.15,136.14,136.11,4.72506616]
[1765213973692,9.7605,136.15,136.11,4.72506616]
[1765213973892,5.49947156,136.14,136.11,4.72506616]
[1765213974094,3.15,136.15,136.11,4.72506616]
[1765213974608,0.05431793,136.14,136.12,0.03211584]
[1765213977306,3.20431793,136.14,136.12,0.03211584]
[1765213977504,0.05431793,136.14,136.12,0.03211584]
[1765213978103,3.20431793,136.14,136.12,0.03211584]
[1765213980503,0.05431793,136.14,136.12,0.03211584]
[1765213981506,0.05431793,136.14,136.12,6.64391584]
[1765213982709,0.05431793,136.14,136.13,3.02066149]
[1765213983101,3.08431793,136.14,136.13,3.02066149]
[1765213983304,3.08431793,136.14,136.12,0.03211584]
[1765213983705,9.69531793,136.14,136.12,0.03211584]
[1765213983909,3.03,136.13,136.12,0.03211584]
[1765213985308,8.52928813,136.13,136.12,0.03211584]
[1765213985520,3.03,136.11,136.1,62.44]
[1765213986716,3.03,136.13,136.1,62.44]
[1765213986911,3.03,136.13,136.11,3.02066149]
[1765213987106,61.05431793,136.14,136.11,3.02066149]
[1765213987319,5.49910388,136.13,136.11,3.02066149]
[1765213987610,3.08431793,136.14,136.11,3.02066149]
[1765213988516,3.08431793,136.14,136.11,9.63296149]
[1765213990413,0.05431793,136.14,136.12,6.6118]
[1765213990620,0.05431793,136.14,136.13,3.02066149]
[1765213991208,3.08431793,136.14,136.13,3.02066149]
[1765213993515,0.05431793,136.14,136.13,3.02066149]
[1765213996016,3.08431793,136.14,136.13,3.02066149]
[1765213996207,8.60002567,136.14,136.13,3.02066149]
[1765213997712,3.03,136.13,136.11,3.02066149]
[1765213997904,3.03,136.11,136.09,3.02066149]
[1765213998305,5.52398951,136.1,136.09,9.63396149]
[1765213998615,0.05401789,136.11,136.09,9.63396149]
[1765213998917,0.05401789,136.11,136.1,3.02066149]
[1765213999217,5.57696933,136.11,136.1,3.02066149]
[1765214000526,9.86446341,136.17,136.1,4.48066149]
[1765214000714,3.08,136.17,136.15,3.02066149]
[1765214001420,3.12858873,136.17,136.15,3.0719929]
[1765214004224,0.04858873,136.17,136.15,3.0719929]
[1765214004420,3.08,136.2,136.15,105.9011929]
[1765214004613,9.86446341,136.23,136.18,3.02066149]
[1765214004812,9.86446341,136.23,136.2,3.02066149]
[1765214005113,9.86446341,136.23,136.2,9.62836149]
[1765214005319,3.08,136.23,136.2,9.62836149]
[1765214005514,3.12718022,136.23,136.2,9.67484293]
[1765214006225,0.04718022,136.23,136.22,3.02066149]
[1765214012439,3.12718022,136.23,136.22,3.02066149]
[1765214012636,0.04718022,136.23,136.22,3.02066149]
[1765214014442,8.50158878,136.28,136.24,6.6059]
[1765214014652,3.08,136.28,136.26,3.02066149]
[1765214015353,3.1299562,136.28,136.26,3.07704206]
[1765214017148,0.0499562,136.28,136.26,3.07704206]
[1765214018446,0.0499562,136.28,136.26,9.68204206]
[1765214020052,3.1299562,136.28,136.26,6.66138057]
[1765214020240,0.0499562,136.28,136.26,9.68204206]
[1765214020446,3.1299562,136.28,136.26,3.07704206]
[1765214020638,3.08,136.26,136.22,3.02066149]
[1765214021444,6.6052,136.26,136.22,3.02066149]
[1765214021643,6.6052,136.26,136.2,62.42]
[1765214021644,3.1294414,136.25,136.23,0.04730455]
[1765214023654,3.08,136.24,136.23,0.04730455]
[1765214024661,3.08,136.23,136.18,72.04926149]
[1765214024858,3.08,136.22,136.18,65.44066149]
[1765214025661,3.13037121,136.21,136.19,0.04610172]
[1765214026554,3.13037121,136.21,136.19,6.65450172]
[1765214026856,0.05037121,136.21,136.2,3.02066149]
[1765214029965,3.29037121,136.21,136.19,0.04610172]
[1765214032260,0.05037121,136.21,136.19,0.04610172]
[1765214032656,0.05037121,136.21,136.19,6.65450172]
[1765214034752,0.05037121,136.21,136.2,3.02066149]
[1765214035557,3.29037121,136.21,136.2,3.02066149]
[1765214035754,3.29037121,136.21,136.19,0.04610172]
[1765214036666,3.24,136.2,136.16,3.02066149]
[1765214036863,3.24,136.18,136.09,102.8714]
[1765214037160,3.24,136.18,136.13,3.02066149]
[1765214037569,3.29048837,136.17,136.13,3.02066149]
[1765214038157,3.24,136.16,136.13,3.02066149]
[1765214038557,3.24,136.16,136.04,102.9095]
[1765214038765,0.04864459,136.12,136.1,3.02066149]
[1765214038959,3.28828589,136.12,136.09,3.02066149]
[1765214040468,3.3,136.11,136.07,3.02066149]
[1765214040664,3.3,136.11,136.03,334.48921171]
[1765214040869,3.35325416,136.08,136.06,3.02066149]
[1765214041072,3.34930099,136.08,136.06,3.02066149]
[1765214041973,6.32066149,136.07,135.96,102.9728]
[1765214042275,3.3,136.05,135.99,3.02066149]
[1765214042464,3.35615849,136.03,136.0,3.02066149]
[1765214042666,0.05615849,136.03,135.98,102.9556]
[1765214042866,0.05615849,136.03,136.01,102.9356]
[1765214043081,0.05615849,136.03,136.01,165.3756]
[1765214043276,0.05615849,136.03,136.02,6.6168]
[1765214044372,0.05615849,136.03,136.0,62.46]
[1765214044773,3.35615849,136.03,135.98,102.9556]
[1765214044974,0.05615849,136.03,135.99,62.46]
[1765214046083,3.35615849,136.03,135.99,62.46]
[1765214050881,8.91948412,136.03,135.99,62.46]
[1765214051080,3.35615849,136.03,135.99,62.46]
[1765214052078,3.3,136.02,135.99,62.46]
[1765214053180,0.05615849,136.03,135.99,69.078]
[1765214053578,0.05615849,136.03,136.0,102.9425]
[1765214053879,0.05615849,136.03,136.01,6.617]
[1765214055472,3.35615849,136.03,135.99,69.0779]
[1765214056787,0.05615849,136.03,135.99,62.46]
[1765214057386,0.05615849,136.03,135.99,75.00179188]
[1765214057979,0.05615849,136.03,136.01,6.6171]
[1765214058683,5.79311239,136.08,136.03,6.6158]
[1765214058984,9.02311239,136.09,136.03,62.5]
[1765214059180,3.23,136.09,136.03,62.5]
[1765214059585,0.04825513,136.07,136.05,0.04954762]
[1765214060690,0.04825513,136.07,136.05,6.66454762]
[1765214062783,0.04825513,136.07,136.05,0.04954762]
[1765214062784,3.27825513,136.07,136.05,0.04954762]
[1765214062991,9.02932909,136.06,136.05,0.04954762]
[1765214066188,9.02932909,136.06,135.98,115.49459188]
[1765214066189,3.23,136.05,135.99,62.5]
[1765214066493,5.79932909,136.04,135.99,62.5]
[1765214066690,3.23,136.05,135.99,62.5]
[1765214066990,5.81091389,136.04,135.99,62.5]
[1765214067189,0.05512864,136.03,135.99,62.5]
[1765214068091,0.05512864,136.03,136.01,6.6172]
[1765214069488,3.28512864,136.03,136.01,6.6172]
[1765214069683,5.81693016,136.02,135.99,69.1179]
[1765214069990,5.81693016,136.01,135.99,69.1179]
[1765214070190,3.23,136.02,135.99,62.5]
[1765214071284,5.7770503,136.01,135.99,62.5]
[1765214071483,3.23,136.02,135.99,62.5]
[1765214071692,5.77705334,136.01,135.99,62.5]
[1765214071892,3.23,136.02,135.99,62.5]
[1765214072085,5.77705334,136.01,135.99,62.5]
[1765214072290,3.23,136.02,135.99,62.5]
[1765214072494,5.77960278,136.01,135.99,62.5]
[1765214072693,3.23,136.02,135.99,62.5]
[1765214072892,5.78050989,136.01,135.99,62.5]
[1765214073097,3.23,136.02,135.99,62.5]
[1765214073290,5.78189466,136.01,135.99,69.1182]
[1765214073594,3.28512864,136.03,135.99,62.5]
[1765214073790,5.78454805,136.02,135.99,62.5]
[1765214073992,5.78454805,136.01,135.99,62.5]
[1765214074190,3.28512864,136.03,135.99,62.5]
[1765214074393,5.78491656,136.02,136.0,6.6177]
[1765214074695,5.78491656,136.01,136.0,6.6177]
[1765214076697,0.05512864,136.03,136.02,6.6168]
[1765214086705,0.05512864,136.03,136.02,11.34247452]
[1765214102318,3.09512864,136.03,136.0,6.6173]
[1765214102523,3.04,136.01,135.93,102.9922]
[1765214102721,3.04,136.01,135.94,67.22567452]
[1765214102722,3.09028927,135.99,135.94,67.22567452]
[1765214103014,3.09028927,135.99,135.96,4.72567452]
[1765214103015,0.05028927,135.99,135.96,4.72567452]
[1765214104605,0.05028927,135.99,135.97,6.619]
[1765214104810,0.05028927,135.99,135.97,9.6465047]
[1765214105212,0.05028927,135.99,135.97,72.1465047]
[1765214107319,5.54533314,136.03,136.0,6.6176]
[1765214107623,3.04,136.01,136.0,62.52]
[1765214107916,5.54533314,136.01,136.0,62.52]
[1765214109917,5.54533314,136.01,136.0,65.5475047]
[1765214110216,0.04842762,136.02,136.0,65.5475047]
[1765214110522,0.04842762,136.02,136.0,72.1651047]
[1765214111018,0.04842762,136.02,136.01,3.0275047]
[1765214112422,3.08842762,136.02,136.01,3.0275047]
[1765214113013,5.57200806,136.02,136.01,3.0275047]
[1765214113214,3.08842762,136.02,136.0,65.5475047]
[1765214114120,0.04842762,136.02,136.0,72.1651047]
[1765214120128,12.14897577,136.09,136.03,102.9204]
[1765214120129,6.75154027,136.09,136.03,102.9204]
[1765214120322,5.52509789,136.08,136.05,3.0275047]
[1765214120522,3.24,136.1,136.05,3.0275047]
[1765214120728,13.94197254,136.09,136.05,3.0275047]
[1765214120927,5.52541334,136.08,136.05,3.0275047]
[1765214121232,0.04882765,136.08,136.05,3.07608586]
[1765214121433,0.04882765,136.08,136.07,3.0275047]
[1765214121635,8.78290486,136.08,136.07,3.0275047]
[1765214122330,5.54290486,136.08,136.07,3.0275047]
[1765214122534,8.78290486,136.08,136.05,3.07608586]
[1765214122734,3.28882765,136.08,136.05,3.07608586]
[1765214123630,8.73150869,136.07,136.05,3.07608586]
[1765214123834,3.24,136.07,136.05,3.07608586]
[1765214125227,3.28882765,136.08,136.05,3.07608586]
[1765214125528,5.48819148,136.07,136.05,3.07608586]
[1765214125735,3.28882765,136.08,136.05,9.69128586]
[1765214125935,5.48786493,136.07,136.05,9.69128586]
[1765214126143,3.28882765,136.08,136.05,3.07608586]
[1765214126344,5.48750854,136.07,136.05,3.07608586]
[1765214126644,3.28882765,136.08,136.05,3.07608586]
[1765214126942,5.48679331,136.07,136.05,3.07608586]
[1765214127152,3.28882765,136.08,136.05,3.07608586]
[1765214127441,8.72645961,136.07,136.05,3.07608586]
[1765214127642,0.04882765,136.08,136.05,3.07608586]
[1765214127838,0.04882765,136.08,136.07,3.0275047]
[1765214128038,8.77568114,136.08,136.07,3.0275047]
[1765214133642,3.24,136.07,136.05,0.04858116]
[1765214133846,3.24,136.05,136.01,3.0275047]
[1765214134242,3.24,136.02,135.99,3.0275047]
[1765214134931,3.24,136.01,135.99,0.04723223]
[1765214135136,3.24,136.01,135.99,3.07473693]
[1765214135646,0.05042416,136.02,135.99,9.69273693]
[1765214135844,3.29042416,136.02,135.99,9.69273693]
[1765214136346,3.29042416,136.02,135.99,0.04723223]
[1765214136547,3.24,136.0,135.99,0.04723223]
[1765214136842,3.24,136.0,135.94,3.0275047]
[1765214136843,3.24,135.99,135.94,3.0275047]
[1765214137242,3.0275047,135.98,135.92,69.1214]
[1765214137442,3.24,135.96,135.93,3.0275047]
[1765214137647,3.29317117,135.96,135.93,3.0275047]
[1765214138251,3.29317117,135.96,135.91,3.0275047]
[1765214138450,3.29317117,135.96,135.91,9.6495047]
[1765214138646,3.29317117,135.96,135.91,3.0275047]
[1765214138947,3.29317117,135.96,135.93,3.0275047]
[1765214139145,0.05317117,135.96,135.93,3.0275047]
[1765214139347,0.05317117,135.96,135.95,3.0275047]
[1765214141249,3.29317117,135.96,135.89,165.5251]
[1765214141452,3.29317117,135.96,135.91,3.0275047]
[1765214141649,3.24,135.95,135.91,3.0275047]
[1765214142544,3.08067587,135.96,135.93,3.0275047]
[1765214142545,3.29317117,135.96,135.93,3.0275047]
[1765214143148,3.29317117,135.96,135.91,6.6218]
[1765214143348,3.29317117,135.96,135.93,3.0275047]
[1765214144760,0.05317117,135.96,135.95,3.0275047]
[1765214146656,0.05317117,135.96,135.94,76.36875019]
[1765214152459,3.24,136.01,135.98,6.6185]
[1765214152858,3.24,136.01,135.94,62.54]
[1765214153467,3.32890677,135.99,135.96,0.05157643]
[1765214154262,0.04890677,135.99,135.97,6.6189]
[1765214154461,0.04890677,135.99,135.98,62.54]
[1765214157263,3.28,136.04,135.99,102.9501]
[1765214158064,3.28,136.04,135.99,110.15835019]
[1765214158266,0.05345329,136.03,136.02,6.6166]
[1765214158467,0.05345329,136.03,136.02,69.1566]
[1765214160470,0.05345329,136.03,136.02,76.36485019]
[1765214164175,3.13,136.1,136.05,6.6149]
[1765214164372,3.13,136.1,136.05,69.1349]
[1765214164574,3.13,136.1,136.05,62.52]
[1765214165173,3.13,136.08,136.06,0.05068967]
[1765214165786,64.13,136.08,136.06,0.05068967]
[1765214165972,3.13,136.06,136.02,6.6163]
[1765214166780,3.13,136.06,136.0,69.1375]
[1765214166973,0.05149484,136.04,136.03,4.72784451]
[1765214167672,0.05149484,136.04,136.03,67.24784451]
[1765214168778,3.13,136.09,136.03,170.16604451]
[1765214168969,3.13,136.09,136.05,4.72784451]
[1765214169570,69.580251,136.11,136.05,4.72784451]
[1765214169884,3.1781655,136.09,136.07,0.05619271]
[1765214171284,3.13,136.08,136.03,62.52]
[1765214172179,3.13,136.07,136.03,62.52]
[1765214172379,3.13,136.07,136.04,0.05531003]
[1765214175195,3.13,136.06,136.04,0.05531003]
[1765214185203,3.13,136.06,136.04,4.78315454]
[1765214187003,3.13,136.08,136.05,6.6153]
[1765214187204,3.13,136.08,136.06,4.72784451]
[1765214188299,3.13,136.08,136.06,11.34264451]
[1765214192602,3.1781655,136.09,136.07,6.614]
[1765214192800,5.47152716,136.08,136.07,6.614]
[1765214193805,3.13,136.08,136.07,6.614]
[1765214194308,0.0481655,136.09,136.07,6.614]
[1765214194509,3.13,136.14,136.09,102.8721]
[1765214194699,5.47832524,136.13,136.11,4.72784451]
[1765214194904,3.13,136.14,136.11,4.72784451]
[1765214195104,5.47846182,136.13,136.11,4.72784451]
[1765214195304,3.13,136.14,136.12,6.6118]
[1765214195510,5.4778939,136.13,136.12,6.66216338]
[1765214195914,3.18091836,136.14,136.12,6.66216338]
[1765214197311,0.05091836,136.14,136.12,6.66216338]
[1765214197813,3.18091836,136.14,136.12,6.66216338]
[1765214198119,0.05091836,136.14,136.12,6.66216338]
[1765214198322,0.05091836,136.14,136.13,4.72784451]
[1765214201010,3.18091836,136.14,136.12,11.39000789]
[1765214201417,3.18091836,136.14,136.12,0.05036338]
[1765214202917,0.05091836,136.14,136.12,0.05036338]
[1765214204028,0.05091836,136.14,136.12,11.38990789]
[1765214208026,3.13,136.18,136.16,6.6099]
[1765214208627,3.13,136.18,136.15,62.48]